bitfinex/quotes_BTCUSD_20250826
["timestamp","ask_amount","ask_price","bid_price","bid_amount"]
[1756216654791,0.50924521,110050.0,110040.0,0.18386209]
[1756216655016,4.768e-05,110050.0,110040.0,0.18701209]
[1756216655226,4.768e-05,110050.0,110040.0,0.34288195]
[1756216655431,0.18178325,110050.0,110040.0,0.34288195]
[1756216655857,0.67727851,110050.0,110040.0,0.18696]
[1756216656073,0.18175209,110040.0,110030.0,0.2516743]
[1756216656266,0.18175209,110040.0,110030.0,0.53001632]
[1756216656475,0.18175209,110040.0,110030.0,0.53529062]
[1756216656687,0.18175209,110040.0,110030.0,0.46218062]
[1756216657113,0.18178325,110050.0,110040.0,0.18175209]
[1756216657364,0.18178325,110050.0,110040.0,0.00216]
[1756216657595,0.18378325,110050.0,110040.0,0.18175209]
[1756216657800,0.18178325,110050.0,110040.0,0.18391209]
[1756216658009,4.768e-05,110050.0,110040.0,0.18391209]
[1756216658226,4.768e-05,110050.0,110040.0,0.34982587]
[1756216659874,4.768e-05,110050.0,110040.0,0.35382587]
[1756216660694,4.768e-05,110050.0,110040.0,1.25707113]
[1756216662256,1.00004768,110050.0,110040.0,1.25307113]
[1756216662424,0.18348296,110050.0,110040.0,1.83161937]
[1756216662612,0.00398701,110050.0,110040.0,1.83861937]
[1756216662824,1e-08,110050.0,110040.0,1.83861937]
[1756216663029,0.0004,110100.0,110090.0,0.18166954]
[1756216663242,0.0089884,110100.0,110090.0,0.18166954]
[1756216663450,0.0109884,110100.0,110090.0,0.18282954]
[1756216663679,0.0139484,110100.0,110090.0,0.18066954]
[1756216663881,0.19901651,110100.0,110090.0,0.36706954]
[1756216664091,0.19901661,110100.0,110090.0,0.36606954]
[1756216664317,0.19264144,110100.0,110090.0,0.36606954]
[1756216664517,0.0109884,110100.0,110090.0,0.36606954]
[1756216664729,0.19264144,110100.0,110090.0,0.36606954]
[1756216664980,0.19560144,110100.0,110080.0,0.22199387]
[1756216665189,0.69529811,110100.0,110090.0,0.18166954]
[1756216665399,0.50727366,110100.0,110090.0,0.18166954]
[1756216665621,0.19560144,110100.0,110090.0,0.18166954]
[1756216666037,0.19560144,110100.0,110080.0,0.31345589]
[1756216666241,0.18462954,110090.0,110080.0,0.27313335]
[1756216666459,0.18662954,110090.0,110080.0,0.18168604]
[1756216666668,0.6799548,110090.0,110080.0,0.36788604]
[1756216666892,0.1821831,110100.0,110090.0,0.18166954]
[1756216667094,0.19899006,110100.0,110080.0,0.45934806]
[1756216667354,0.69527532,110100.0,110080.0,0.45934806]
[1756216667562,0.69527532,110100.0,110080.0,0.46134806]
[1756216667980,0.69527532,110100.0,110090.0,0.18166954]
[1756216668322,0.20195006,110100.0,110080.0,0.46134806]
[1756216668604,0.69527532,110100.0,110080.0,0.46134806]
[1756216668831,0.18166954,110090.0,110080.0,0.46134806]
[1756216669110,0.68046836,110100.0,110090.0,0.18166954]
[1756216669434,0.19898132,110100.0,110090.0,0.18366954]
[1756216669638,0.19898061,110100.0,110090.0,0.18166954]
[1756216669845,0.20194061,110100.0,110080.0,0.45934806]
[1756216670061,0.18166954,110090.0,110080.0,0.46334806]
[1756216670242,0.002,110090.0,110080.0,0.46150806]
[1756216670494,0.1851431,110100.0,110080.0,0.46150806]
[1756216670695,0.1851431,110100.0,110090.0,0.18466954]
[1756216670696,0.19357943,110100.0,110090.0,0.18466954]
[1756216670882,0.19697761,110100.0,110090.0,0.18466954]
[1756216671087,0.20193761,110100.0,110090.0,0.003]
[1756216671312,0.69526287,110100.0,110090.0,0.003]
[1756216671513,0.027712,110130.0,110120.0,0.18162005]
[1756216671728,0.0004,110130.0,110120.0,0.43738005]
[1756216671930,0.00087679,110130.0,110120.0,0.43738005]
[1756216672798,0.00583679,110130.0,110120.0,0.47866372]
[1756216673006,0.00583679,110130.0,110120.0,0.57012574]
[1756216673421,0.00583679,110130.0,110120.0,0.57608574]
[1756216674078,0.6807656,110130.0,110120.0,0.53464207]
[1756216674292,0.18744034,110130.0,110120.0,0.53464207]
[1756216674500,0.18744034,110130.0,110120.0,0.27908207]
[1756216674715,0.6807656,110130.0,110120.0,0.006]
[1756216674923,0.49916205,110130.0,110120.0,0.18762005]
[1756216675350,0.00087679,110130.0,110120.0,0.18762005]
[1756216675574,0.00583679,110130.0,110120.0,0.18762005]
[1756216676197,0.18744034,110130.0,110120.0,0.18762005]
[1756216676419,0.18744034,110130.0,110120.0,0.37322005]
[1756216676420,0.49916205,110130.0,110120.0,0.37322005]
[1756216676622,0.00583679,110130.0,110120.0,0.36722005]
[1756216677275,0.00583679,110130.0,110120.0,0.36822005]
[1756216677480,0.00583679,110130.0,110120.0,0.36722005]
[1756216677714,0.18744034,110130.0,110120.0,0.18462005]
[1756216677918,0.18744034,110130.0,110120.0,0.37014005]
[1756216678543,0.18744034,110130.0,110120.0,0.1884]
[1756216678961,0.6807656,110130.0,110120.0,0.37002005]
[1756216679358,0.18744034,110130.0,110120.0,0.37002005]
[1756216680433,0.6807656,110130.0,110120.0,0.1884]
[1756216680643,0.6807656,110130.0,110120.0,0.37002005]
[1756216680848,0.00583679,110130.0,110120.0,0.37002005]
[1756216681067,0.00087679,110130.0,110120.0,0.46148207]
[1756216681692,0.00087679,110130.0,110120.0,0.95480733]
[1756216681885,0.00087679,110130.0,110120.0,0.46148207]
[1756216682094,0.00087679,110130.0,110120.0,0.95480733]
[1756216682301,0.00087679,110130.0,110120.0,0.46148207]
[1756216683446,0.67489687,110150.0,110130.0,0.181591]
[1756216683679,0.002,110140.0,110130.0,0.45813302]
[1756216684116,0.18171459,110150.0,110140.0,0.18158707]
[1756216684330,0.00214298,110150.0,110140.0,0.18158707]
[1756216684737,0.00014298,110150.0,110140.0,0.27520909]
[1756216684893,0.00014298,110150.0,110140.0,0.77149435]
[1756216685888,0.00014298,110150.0,110140.0,0.46020909]
[1756216686114,0.00014298,110150.0,110140.0,0.46316909]
[1756216686749,0.00014298,110150.0,110140.0,0.95649435]
[1756216687104,0.00014298,110150.0,110140.0,0.96049435]
[1756216687308,0.00014298,110150.0,110140.0,1.29649435]
[1756216687586,0.00014298,110150.0,110140.0,0.80316909]
[1756216687833,0.00014298,110150.0,110140.0,1.30049435]
[1756216688253,0.00014298,110150.0,110140.0,1.29649435]
[1756216688464,0.00014298,110150.0,110140.0,0.80816909]
[1756216688662,0.00014298,110150.0,110140.0,1.30149435]
[1756216688876,0.00014298,110150.0,110140.0,0.80816909]
[1756216689125,0.68786807,110180.0,110170.0,0.52153762]
[1756216689126,0.00048,110180.0,110170.0,0.52153762]
[1756216689330,0.00048,110180.0,110170.0,1.3608849]
[1756216689549,0.00048,110180.0,110170.0,1.1811049]
[1756216689770,0.00048,110180.0,110170.0,1.3657849]
[1756216689992,1e-08,110180.0,110170.0,1.3657849]
[1756216690426,1e-08,110180.0,110170.0,1.5657849]
[1756216690628,1e-08,110180.0,110170.0,1.5717849]
[1756216691067,1e-08,110180.0,110170.0,1.3717049]
[1756216691278,1e-08,110180.0,110170.0,1.5871049]
[1756216691479,1e-08,110180.0,110170.0,1.27837964]
[1756216691695,1e-08,110180.0,110170.0,1.7717049]
[1756216691943,0.0004,110190.0,110180.0,0.52152114]
[1756216692149,0.00054293,110190.0,110180.0,0.79754316]
[1756216692353,0.00054293,110190.0,110180.0,0.61496316]
[1756216692555,0.00054293,110190.0,110180.0,0.79952316]
[1756216693347,0.00054293,110190.0,110180.0,0.80052316]
[1756216693959,0.00253293,110190.0,110180.0,0.61398316]
[1756216694166,0.00567293,110190.0,110180.0,0.79838316]
[1756216694384,0.00253293,110190.0,110180.0,0.79838316]
[1756216694819,0.00567293,110190.0,110180.0,0.45838316]
[1756216695021,0.00054293,110190.0,110180.0,0.50094766]
[1756216695480,0.00054293,110190.0,110180.0,1.33723292]
[1756216695814,0.00054293,110190.0,110180.0,0.84390766]
[1756216698264,0.00054293,110190.0,110180.0,1.33723292]
[1756216699075,0.00054293,110190.0,110180.0,1.73723292]
[1756216699898,0.00054293,110190.0,110180.0,1.24390766]
[1756216700145,0.00054293,110190.0,110180.0,1.73723292]
[1756216700791,0.00054293,110190.0,110180.0,1.05654766]
[1756216701005,0.00054293,110190.0,110180.0,1.24050766]
[1756216701433,0.00253293,110190.0,110180.0,1.05456766]
[1756216701642,0.00054293,110190.0,110180.0,1.24046766]
[1756216702281,0.00054293,110190.0,110180.0,0.84343766]
[1756216702485,0.00054293,110190.0,110180.0,0.84046766]
[1756216702912,0.00253293,110190.0,110180.0,0.84042766]
[1756216703105,0.00253293,110190.0,110180.0,0.84038766]
[1756216703381,0.00567293,110190.0,110180.0,0.65456766]
[1756216703590,0.00567293,110190.0,110180.0,0.83836766]
[1756216703794,0.00054293,110190.0,110180.0,0.84034766]
[1756216704587,0.00054293,110190.0,110180.0,1.33664292]
[1756216705588,0.00054293,110190.0,110180.0,0.65654766]
[1756216705799,0.00253293,110190.0,110180.0,0.84026766]
[1756216705946,0.00253293,110190.0,110180.0,1.05456766]
[1756216706169,0.00054293,110190.0,110180.0,1.24018766]
[1756216706371,0.00054293,110190.0,110180.0,0.84018766]
[1756216707215,0.00054293,110190.0,110180.0,1.33648292]
[1756216708443,0.49686526,110220.0,110180.0,1.53648292]
[1756216708444,0.0004,110220.0,110180.0,1.53648292]
[1756216708641,0.0004,110220.0,110210.0,1.10625901]
[1756216708842,0.0004,110220.0,110210.0,0.86621375]
[1756216709061,0.0004,110220.0,110210.0,0.86819375]
[1756216709331,0.0004,110220.0,110210.0,1.36151901]
[1756216709553,0.0004,110220.0,110210.0,1.36448901]
[1756216710796,0.0004,110220.0,110210.0,0.87116375]
[1756216711009,0.0004,110220.0,110210.0,1.76548901]
[1756216711217,0.0004,110220.0,110210.0,1.80712147]
[1756216711421,0.0004,110220.0,110210.0,1.80612147]
[1756216711629,0.0004,110220.0,110210.0,1.81545191]
[1756216711841,0.0004,110220.0,110210.0,2.23761191]
[1756216712048,0.0004,110220.0,110210.0,2.48761191]
[1756216712263,0.0004,110230.0,110220.0,0.58145527]
[1756216712489,0.0005429,110230.0,110220.0,1.35249255]
[1756216712708,0.0005429,110230.0,110220.0,1.35447255]
[1756216713142,0.0004,110250.0,110240.0,0.77142235]
[1756216713358,0.00087623,110250.0,110240.0,1.80924963]
[1756216713567,0.00343199,110280.0,110270.0,0.18137299]
[1756216713776,0.01201716,110280.0,110270.0,0.54274948]
[1756216713971,0.01400716,110280.0,110270.0,0.54274948]
[1756216714799,0.1953637,110280.0,110270.0,0.54270948]
[1756216715012,0.1953637,110280.0,110270.0,0.54266948]
[1756216715419,0.01400716,110280.0,110270.0,0.58342519]
[1756216716138,0.00887716,110280.0,110270.0,0.92540519]
[1756216716346,0.0004348,110280.0,110270.0,0.74228519]
[1756216716548,0.01400038,110280.0,110270.0,0.92334519]
[1756216717390,0.0055648,110280.0,110270.0,0.74030519]
[1756216717580,0.01399754,110280.0,110270.0,0.90639072]
[1756216717784,0.01399754,110280.0,110270.0,0.72339072]
[1756216717992,0.68867934,110280.0,110270.0,0.20201773]
[1756216718243,0.68867934,110280.0,110270.0,0.38493773]
[1756216718455,0.00886754,110280.0,110270.0,0.38538072]
[1756216718661,0.0004348,110280.0,110270.0,0.90830072]
[1756216718866,0.0004348,110280.0,110270.0,1.40459598]
[1756216719077,0.0014348,110280.0,110270.0,1.22167598]
[1756216719278,0.0014348,110280.0,110270.0,1.40451598]
[1756216719512,0.0004348,110280.0,110270.0,1.40451598]
[1756216719944,0.0004348,110280.0,110270.0,1.40551598]
[1756216720162,0.0004348,110280.0,110270.0,0.73567422]
[1756216720375,0.0004348,110280.0,110270.0,0.91851422]
[1756216720810,0.0004348,110280.0,110270.0,0.91847422]
[1756216721265,0.0025848,110280.0,110270.0,0.90915072]
[1756216721472,0.0004348,110280.0,110270.0,0.92051031]
[1756216721685,0.0004348,110280.0,110270.0,1.41383557]
[1756216721937,0.0004348,110280.0,110270.0,1.41680557]
[1756216722117,0.0004348,110280.0,110270.0,1.61680557]
[1756216722529,0.0004348,110280.0,110270.0,0.94072031]
[1756216722732,0.0004348,110280.0,110270.0,1.43404557]
[1756216722929,0.0004348,110280.0,110270.0,1.61672557]
[1756216723746,0.0004348,110280.0,110270.0,0.94072031]
[1756216723955,0.0004348,110280.0,110270.0,1.61668557]
[1756216724155,0.0004348,110280.0,110270.0,1.61664557]
[1756216724754,0.49332526,110310.0,110290.0,0.18132366]
[1756216725128,0.0084086,110310.0,110300.0,0.52510568]
[1756216725386,0.0105586,110310.0,110300.0,0.52510568]
[1756216726056,0.0105586,110310.0,110300.0,0.34254568]
[1756216726278,0.0105586,110310.0,110300.0,0.52506568]
[1756216726497,0.0105586,110310.0,110300.0,0.56565097]
[1756216726945,0.0136586,110310.0,110300.0,0.56565097]
[1756216727140,0.50698386,110310.0,110300.0,0.38313097]
[1756216727359,0.68829108,110310.0,110300.0,0.56557097]
[1756216727572,0.68829108,110310.0,110300.0,0.20180731]
[1756216727804,0.68829108,110310.0,110300.0,0.38420731]
[1756216728247,0.1813401,110290.0,110280.0,0.06976]
[1756216728457,0.68307396,110290.0,110280.0,0.27382202]
[1756216728674,0.68307396,110290.0,110270.0,0.04075571]
[1756216728675,0.18135654,110280.0,110270.0,0.04075571]
[1756216728915,0.6777818,110280.0,110270.0,0.13221773]
[1756216729147,0.18137299,110270.0,110250.0,0.00039992]
[1756216729367,0.18137299,110270.0,110250.0,0.27418194]
[1756216729368,0.6747147,110260.0,110250.0,0.27418194]
[1756216729622,0.6799647,110260.0,110250.0,0.27432475]
[1756216729840,0.6799647,110260.0,110250.0,0.18286273]
[1756216730058,0.6799647,110260.0,110250.0,0.00054273]
[1756216730277,0.6799647,110260.0,110250.0,0.18282273]
[1756216730278,0.68836822,110260.0,110250.0,0.18282273]
[1756216730916,0.68836822,110260.0,110250.0,0.00054273]
[1756216732294,0.19504296,110260.0,110250.0,0.00054273]
[1756216732627,0.68836822,110260.0,110250.0,0.00054273]
[1756216733517,0.19504296,110260.0,110250.0,0.00054273]
[1756216733722,0.68836822,110260.0,110250.0,0.00054273]
[1756216733935,0.44923051,110260.0,110250.0,0.00054273]
[1756216734150,0.63276995,110260.0,110250.0,0.00054273]
[1756216734852,1.12609521,110260.0,110250.0,0.00054273]
[1756216735060,1.17318996,110260.0,110250.0,0.00054273]
[1756216735295,0.6798647,110260.0,110250.0,0.00054273]
[1756216735514,6.55034612,110260.0,110250.0,0.00054273]
[1756216735734,6.57762512,110260.0,110250.0,0.00054273]
[1756216735959,6.57914512,110260.0,110250.0,0.00054273]
[1756216736188,6.39702512,110260.0,110250.0,0.00054273]
[1756216736404,6.57906512,110260.0,110250.0,0.00054273]
[1756216736621,6.39702512,110260.0,110250.0,0.00054273]
[1756216736829,6.57906512,110260.0,110250.0,0.00054273]
[1756216738323,5.5924146,110260.0,110250.0,0.00054273]
[1756216738540,6.39702512,110260.0,110250.0,0.00054273]
[1756216738985,6.05838086,110260.0,110250.0,0.00054273]
[1756216740072,5.47359358,110260.0,110250.0,0.00054273]
[1756216740302,5.7771077,110260.0,110250.0,0.00054273]
[1756216740520,5.96536384,110260.0,110250.0,0.00054273]
[1756216740727,6.50682327,110260.0,110250.0,0.00054273]
[1756216740999,6.4602091,110260.0,110250.0,0.00054273]
[1756216741897,6.4601691,110260.0,110250.0,0.00054273]
[1756216742133,6.2782891,110260.0,110250.0,0.00054273]
[1756216742354,5.96676384,110260.0,110250.0,0.00054273]
[1756216742827,6.4600891,110260.0,110250.0,0.00054273]
[1756216743236,6.59692866,110260.0,110250.0,0.00054273]
[1756216743452,6.36975112,110260.0,110250.0,0.00054273]
[1756216743669,6.05818586,110260.0,110250.0,0.00054273]
[1756216745260,6.05666586,110260.0,110250.0,0.00054273]
[1756216745493,6.55151112,110260.0,110250.0,0.00054273]
[1756216745711,6.05662586,110260.0,110250.0,0.00054273]
[1756216745928,6.06504598,110260.0,110250.0,0.00054273]
[1756216746151,5.88332598,110260.0,110250.0,0.00054273]
[1756216746364,5.79186396,110260.0,110250.0,0.00054273]
[1756216746577,5.96720782,110260.0,110250.0,0.00054273]
[1756216746802,5.96501782,110260.0,110250.0,0.00550273]
[1756216747034,5.47169256,110260.0,110250.0,0.00550273]
[1756216747245,5.78337782,110260.0,110250.0,0.00550273]
[1756216747460,0.19280956,110260.0,110250.0,0.18690862]
[1756216747899,0.68613482,110260.0,110250.0,0.18690862]
[1756216748117,0.50474538,110260.0,110250.0,0.18690862]
[1756216748341,0.49632526,110260.0,110250.0,0.18690862]
[1756216748591,0.5047495,110260.0,110250.0,0.18690862]
[1756216749016,0.68613894,110260.0,110250.0,0.18690862]
[1756216749221,0.5047495,110260.0,110250.0,0.18690862]
[1756216749647,0.6777147,110260.0,110250.0,0.27837064]
[1756216749891,0.6777147,110260.0,110250.0,0.09696475]
[1756216750097,0.6777147,110260.0,110250.0,0.27848475]
[1756216750312,0.18438944,110260.0,110250.0,0.45989064]
[1756216750531,0.6747147,110260.0,110250.0,0.45989064]
[1756216750963,0.6767147,110260.0,110250.0,0.45989064]
[1756216751618,0.002,110260.0,110250.0,0.45989064]
[1756216752500,0.002,110260.0,110250.0,1.2932159]
[1756216753413,0.002,110260.0,110250.0,0.79989064]
[1756216753643,0.002,110260.0,110250.0,1.2932159]
[1756216754143,0.37180456,110300.0,110250.0,1.2932159]
[1756216754144,0.86512982,110300.0,110280.0,0.18135654]
[1756216754362,0.69217452,110300.0,110290.0,0.00508]
[1756216754567,0.70133835,110300.0,110290.0,0.00508]
[1756216755204,0.1813401,110290.0,110280.0,0.27281856]
[1756216755428,0.68311006,110290.0,110280.0,0.27578856]
[1756216755656,0.68311006,110290.0,110280.0,0.09357202]
[1756216755883,0.68509006,110290.0,110280.0,0.09146202]
[1756216756102,0.68311006,110290.0,110280.0,0.27789856]
[1756216756370,0.68311006,110290.0,110280.0,0.09654202]
[1756216756579,0.68509006,110290.0,110280.0,0.09357202]
[1756216756786,0.68509006,110290.0,110280.0,0.09146202]
[1756216757002,0.68509006,110290.0,110280.0,0.09357202]
[1756216757413,0.68311006,110290.0,110280.0,0.09654202]
[1756216757999,0.68311006,110290.0,110280.0,0.13690584]
[1756216758201,0.68509006,110290.0,110280.0,0.13393584]
[1756216758410,0.68511089,110290.0,110280.0,0.13393584]
[1756216758580,0.68313089,110290.0,110280.0,0.13690584]
[1756216759376,0.18980563,110290.0,110280.0,0.32052933]
[1756216759596,0.01046553,110290.0,110280.0,0.32052933]
[1756216759811,0.01046553,110290.0,110280.0,0.57190198]
[1756216760019,0.01046553,110290.0,110280.0,0.39078198]
[1756216760268,0.01046553,110290.0,110280.0,0.57182198]
[1756216760468,0.002,110290.0,110280.0,0.91182198]
[1756216760888,0.002,110290.0,110280.0,0.73078198]
[1756216761328,0.002,110290.0,110280.0,0.91174198]
[1756216762111,0.002,110290.0,110280.0,0.91170198]
[1756216762318,0.19037258,110310.0,110290.0,0.1813401]
[1756216762520,0.69214874,110310.0,110290.0,0.27577212]
[1756216762724,0.18975812,110310.0,110300.0,0.3695502]
[1756216762927,0.18975812,110310.0,110300.0,0.36728366]
[1756216763446,0.18975812,110310.0,110290.0,0.27280212]
[1756216763447,0.18132366,110300.0,110290.0,0.09146202]
[1756216763650,0.00844784,110300.0,110290.0,0.09654202]
[1756216763865,0.18975518,110310.0,110300.0,0.18132366]
[1756216764072,0.68308059,110310.0,110300.0,0.18592]
[1756216764282,0.18132366,110300.0,110290.0,0.27577212]
[1756216764484,0.67464892,110300.0,110290.0,0.27523202]
[1756216764697,0.67464892,110300.0,110290.0,0.45868212]
[1756216764902,0.18132366,110300.0,110290.0,0.45868212]
[1756216765107,0.67464892,110300.0,110290.0,0.45868212]
[1756216765305,0.67662892,110300.0,110290.0,0.27226202]
[1756216765502,0.67662892,110300.0,110290.0,0.27437202]
[1756216766017,0.67662892,110300.0,110290.0,0.27433202]
[1756216766212,0.67662892,110300.0,110290.0,0.09146202]
[1756216766494,0.18132366,110300.0,110290.0,0.27433202]
[1756216766700,0.67662892,110300.0,110290.0,0.27222202]
[1756216767310,0.1813401,110290.0,110280.0,0.22108382]
[1756216767451,0.67466536,110290.0,110280.0,0.31250584]
[1756216767658,0.1813401,110290.0,110280.0,0.49894238]
[1756216767883,0.67664536,110290.0,110280.0,0.49597238]
[1756216768093,0.67664536,110290.0,110280.0,0.31461584]
[1756216768292,0.67664536,110290.0,110280.0,0.31758584]
[1756216768452,0.67664536,110290.0,110280.0,0.49894238]
[1756216768658,0.67466536,110290.0,110280.0,0.49894238]
[1756216768853,0.67466536,110290.0,110280.0,0.31758584]
[1756216769258,0.67664536,110290.0,110280.0,0.49597238]
[1756216769666,0.85524892,110300.0,110280.0,0.49894238]
[1756216769866,0.1813401,110290.0,110280.0,0.31529238]
[1756216770186,0.1813401,110290.0,110280.0,0.49589238]
[1756216770390,0.1813401,110290.0,110280.0,0.49886238]
[1756216770716,0.1813401,110290.0,110280.0,0.49986238]
[1756216770889,0.67464892,110300.0,110280.0,0.49986238]
[1756216771294,0.1813401,110290.0,110280.0,0.31926238]
[1756216771536,0.1813401,110290.0,110280.0,0.49986238]
[1756216771739,0.67466536,110290.0,110280.0,0.49986238]
[1756216771936,0.18132366,110300.0,110290.0,0.1813401]
[1756216772180,0.18132366,110300.0,110280.0,0.49886238]
[1756216772181,0.1813401,110290.0,110280.0,0.49886238]
[1756216772360,0.1834701,110290.0,110280.0,0.31826238]
[1756216772585,0.1834701,110290.0,110280.0,0.49878238]
[1756216772824,0.1813401,110290.0,110280.0,0.49878238]
[1756216773103,0.1813401,110290.0,110280.0,0.31445584]
[1756216773104,0.67678536,110290.0,110280.0,0.31445584]
[1756216774066,0.67678536,110290.0,110280.0,0.31226584]
[1756216775121,0.67678536,110290.0,110280.0,0.22080382]
[1756216775341,0.68524589,110290.0,110280.0,0.001]
[1756216775548,0.68678589,110290.0,110280.0,0.1814]
[1756216775875,0.86718589,110290.0,110280.0,0.001]
[1756216776701,0.18135654,110280.0,110270.0,0.22071931]
[1756216776900,0.6746818,110280.0,110270.0,0.22071931]
[1756216777108,0.18137299,110270.0,110260.0,0.0725196]
[1756216777315,0.67469825,110270.0,110260.0,0.25298241]
[1756216777523,0.68525579,110270.0,110260.0,0.07266241]
[1756216778357,0.68525604,110270.0,110260.0,0.07266241]
[1756216779902,0.68525604,110270.0,110260.0,0.00014281]
[1756216780039,0.68882604,110270.0,110260.0,0.00014281]
[1756216780439,0.86906604,110270.0,110260.0,0.00014281]
[1756216781655,0.85902825,110270.0,110260.0,0.00014281]
[1756216781856,0.87378522,110270.0,110260.0,0.00014281]
[1756216783317,0.86741932,110270.0,110260.0,0.00014281]
[1756216783917,0.87378311,110270.0,110260.0,0.00014281]
[1756216784332,0.86741932,110270.0,110260.0,0.00014281]
[1756216784741,0.86733932,110270.0,110260.0,0.00014281]
[1756216784949,0.37401406,110270.0,110260.0,0.00014281]
[1756216785149,0.86733452,110270.0,110260.0,0.00014281]
[1756216785360,0.68725452,110270.0,110260.0,0.00014281]
[1756216786147,0.37396926,110270.0,110260.0,0.00014281]
[1756216786366,0.68725452,110270.0,110260.0,0.00014281]
[1756216787366,0.67878825,110270.0,110260.0,0.00014281]
[1756216787566,0.85878825,110270.0,110260.0,0.00014281]
[1756216788187,0.86724966,110270.0,110260.0,0.00014281]
[1756216788402,0.85878825,110270.0,110260.0,0.00014281]
[1756216788617,0.85874825,110270.0,110260.0,0.00014281]
[1756216789371,0.18546299,110270.0,110260.0,0.00217281]
[1756216789585,0.85870825,110270.0,110260.0,0.00014281]
[1756216790868,0.85862825,110270.0,110260.0,0.00014281]
[1756216791286,0.85862825,110270.0,110260.0,0.00217281]
[1756216791502,0.85862825,110270.0,110260.0,0.00014281]
[1756216792337,0.18546299,110270.0,110260.0,0.00014281]
[1756216792524,0.67878825,110270.0,110260.0,0.00014281]
[1756216792746,0.85858825,110270.0,110260.0,0.00214281]
[1756216793621,0.36526299,110270.0,110260.0,0.00214281]
[1756216793830,0.85858825,110270.0,110260.0,0.00214281]
[1756216794290,0.002,110270.0,110260.0,0.35503123]
[1756216794499,0.34,110280.0,110260.0,0.35276387]
[1756216794706,0.34,110280.0,110260.0,0.34954387]
[1756216794707,0.18137299,110270.0,110260.0,0.34954387]
[1756216794913,0.18137299,110270.0,110260.0,0.52922387]
[1756216795119,0.66350869,110290.0,110270.0,0.18137299]
[1756216795328,0.67833026,110290.0,110280.0,0.00525]
[1756216795531,0.6719716,110290.0,110280.0,0.00525]
[1756216795937,0.6739516,110290.0,110280.0,0.00525]
[1756216797270,0.6759516,110290.0,110280.0,0.00529]
[1756216798125,0.6759516,110290.0,110280.0,0.00207]
[1756216798322,0.6739716,110290.0,110280.0,0.00529]
[1756216798527,0.01046291,110290.0,110280.0,0.43872614]
[1756216798706,0.002,110290.0,110280.0,0.53018816]
[1756216799572,0.18130734,110310.0,110290.0,0.18132982]
[1756216799715,0.18978123,110310.0,110300.0,0.18477]
[1756216799919,0.68310649,110310.0,110300.0,0.18477]
[1756216800328,0.18978123,110310.0,110300.0,0.36609366]
[1756216800723,0.68310649,110310.0,110300.0,0.36609366]
[1756216801173,0.68508649,110310.0,110300.0,0.18477]
[1756216801389,0.68508649,110310.0,110280.0,0.30476162]
[1756216801390,0.1813401,110290.0,110280.0,0.04803766]
[1756216801617,0.18132366,110300.0,110290.0,0.00322]
[1756216801863,0.18132366,110300.0,110290.0,0.00525]
[1756216802075,0.18132366,110300.0,110290.0,0.1865901]
[1756216802279,0.68369796,110310.0,110290.0,0.3659901]
[1756216802481,0.69217151,110310.0,110290.0,0.1833701]
[1756216802697,0.00847355,110310.0,110300.0,0.18454366]
[1756216802912,0.68978077,110310.0,110300.0,0.18657366]
[1756216803132,5.44034903,110310.0,110300.0,0.18461]
[1756216803345,0.68508603,110310.0,110300.0,0.00203]
[1756216803558,0.18132366,110300.0,110290.0,0.27082202]
[1756216803793,0.67464892,110300.0,110290.0,0.17936]
[1756216804013,0.18130722,110310.0,110290.0,0.45967887]
[1756216804228,0.18132366,110300.0,110290.0,0.09349202]
[1756216804452,0.18132366,110300.0,110290.0,0.27281202]
[1756216804865,0.18132366,110300.0,110290.0,0.45737212]
[1756216805086,0.67463248,110310.0,110290.0,0.45737212]
[1756216805296,0.18132366,110300.0,110290.0,0.45415212]
[1756216805507,0.18132366,110300.0,110290.0,0.09349202]
[1756216805737,0.67464892,110300.0,110290.0,0.27281202]
[1756216805944,0.67464892,110300.0,110290.0,0.27603202]
[1756216806152,0.67464892,110300.0,110290.0,0.45733212]
[1756216806806,0.49332526,110300.0,110290.0,0.45733212]
[1756216807056,0.67464892,110300.0,110290.0,0.45733212]
[1756216807475,0.67463248,110310.0,110290.0,0.45733212]
[1756216807736,0.18129288,110320.0,110310.0,0.18130722]
[1756216807959,0.18129288,110320.0,110310.0,0.36551722]
[1756216808173,0.18129079,110320.0,110310.0,0.45697924]
[1756216808620,0.2002791,110330.0,110320.0,0.18129079]
[1756216808830,0.00048,110330.0,110320.0,0.27275281]
[1756216809051,0.18175435,110330.0,110320.0,0.27776281]
[1756216809271,0.18175435,110330.0,110320.0,0.09647202]
[1756216809484,0.18129079,110320.0,110310.0,0.17916]
[1756216809710,0.67507961,110330.0,110310.0,0.45693924]
[1756216809917,0.67507961,110330.0,110320.0,0.18431079]
[1756216810129,0.19094493,110330.0,110320.0,0.18630079]
[1756216810355,0.19094493,110330.0,110320.0,0.00501]
[1756216810577,0.19094493,110330.0,110320.0,0.18413]
[1756216810791,0.00048,110330.0,110320.0,0.52940241]
[1756216811051,0.00048,110330.0,110320.0,1.06413889]
[1756216811469,0.00048,110330.0,110320.0,0.57081363]
[1756216811694,0.00048,110330.0,110320.0,1.06413889]
[1756216811907,0.00048,110330.0,110320.0,0.88501889]
[1756216812110,0.00048,110330.0,110320.0,1.06405889]
[1756216812320,0.00048,110330.0,110320.0,1.40409889]
[1756216812965,0.00048,110330.0,110320.0,1.22505889]
[1756216813173,0.00048,110330.0,110320.0,1.40409889]
[1756216814233,0.00048,110330.0,110320.0,1.40405889]
[1756216814441,0.00048,110330.0,110320.0,0.65921403]
[1756216814648,0.18175435,110330.0,110320.0,0.31921403]
[1756216814928,0.00048,110330.0,110320.0,0.49821403]
[1756216815342,0.00048,110330.0,110320.0,0.32321403]
[1756216815783,0.00048,110330.0,110320.0,0.50213403]
[1756216815989,0.00048,110330.0,110320.0,0.99545929]
[1756216816226,0.00048,110330.0,110320.0,0.32321403]
[1756216816433,0.00048,110330.0,110320.0,0.99545929]
[1756216817107,0.00048,110330.0,110320.0,1.33545929]
[1756216817592,0.0004,110360.0,110350.0,0.1812415]
[1756216817804,0.0004,110360.0,110350.0,1.01462878]
[1756216818035,0.0004,110360.0,110350.0,1.01661878]
[1756216818275,0.0004,110360.0,110350.0,0.34743352]
[1756216818483,0.0004,110360.0,110350.0,0.52627352]
[1756216818917,0.18162508,110360.0,110350.0,0.34743352]
[1756216819128,0.0004,110360.0,110350.0,0.52627352]
[1756216819353,0.18162508,110360.0,110350.0,0.53127352]
[1756216819575,0.18162508,110360.0,110350.0,0.21262056]
[1756216819797,0.18125134,110350.0,110330.0,0.59398578]
[1756216820004,0.18125793,110340.0,110330.0,0.07274]
[1756216820217,0.18322793,110340.0,110330.0,0.42979435]
[1756216820433,0.18125134,110350.0,110330.0,0.43480435]
[1756216820663,0.18125134,110350.0,110340.0,0.18125793]
[1756216820892,0.18162508,110360.0,110350.0,0.1812415]
[1756216821110,0.19201908,110360.0,110350.0,0.17876]
[1756216821349,0.1812415,110350.0,110340.0,0.09146202]
[1756216821536,0.1916355,110350.0,110340.0,0.27018202]